bitfinex/quotes_ETHUSD_20250222
["timestamp","ask_amount","ask_price","bid_price","bid_amount"]
[1740232759374,8.98653,2727.4,2726.9,0.265]
[1740232759673,3.66665,2727.3,2726.9,0.265]
[1740232759978,8.98649,2727.4,2726.9,0.265]
[1740232761285,12.65311,2727.4,2726.9,0.265]
[1740232761488,8.98649,2727.4,2726.9,0.265]
[1740232761690,3.66684,2727.2,2726.9,0.265]
[1740232761885,7.33369,2727.2,2726.9,0.265]
[1740232762094,3.66684,2727.2,2726.9,0.265]
[1740232762754,5.32,2727.1,2727.0,0.03802702]
[1740232764084,5.32,2727.1,2726.7,1.0717]
[1740232764287,8.98689,2727.1,2727.0,0.03802702]
[1740232764580,8.98689,2727.1,2726.7,1.0717]
[1740232764788,10.334686,2727.1,2727.0,0.03802702]
[1740232764991,3.66706,2727.0,2726.6,0.265]
[1740232765168,3.66719,2726.9,2726.6,0.265]
[1740232765363,3.66706,2727.0,2726.6,0.265]
[1740232765892,5.0672246,2727.0,2726.5,1.0346]
[1740232766053,3.66706,2727.0,2726.5,1.0346]
[1740232766489,3.66706,2727.0,2726.5,0.7696]
[1740232766682,4.42706,2726.9,2726.5,1.0346]
[1740232767367,3.66731,2726.8,2726.5,1.0346]
[1740232767554,8.98731,2726.8,2726.5,1.0346]
[1740232767988,12.6547,2726.8,2726.5,1.0346]
[1740232768168,8.98731,2726.8,2726.5,1.0346]
[1740232768369,8.98731,2726.8,2726.5,0.265]
[1740232768561,8.98731,2726.8,2726.4,0.265]
[1740232769865,3.66746,2726.7,2726.3,0.7885]
[1740232770067,5.32,2726.8,2726.3,1.0535]
[1740232770264,8.98733,2726.8,2726.3,1.0535]
[1740232770472,5.008909,2726.7,2726.3,1.0535]
[1740232770775,3.66746,2726.7,2726.3,1.0535]
[1740232771189,7.28,2726.8,2726.3,1.0535]
[1740232771798,10.94735,2726.8,2726.3,1.0535]
[1740232772657,7.28,2726.8,2726.3,1.0535]
[1740232774201,10.94731,2726.8,2726.3,1.0535]
[1740232774373,7.28,2726.8,2726.3,1.0535]
[1740232775869,7.28,2726.8,2726.5,0.7885]
[1740232776282,7.28,2726.8,2726.5,4.45613]
[1740232776458,7.28,2726.8,2726.5,0.7885]
[1740232776665,7.28,2726.8,2726.5,4.45619]
[1740232776900,3.66706,2727.0,2726.5,1.0535]
[1740232777063,4.837336,2727.0,2726.5,1.0535]
[1740232777786,4.837336,2727.0,2726.6,0.04048491]
[1740232778304,1.170276,2727.0,2726.6,0.04048491]
[1740232778603,5.32,2727.1,2726.6,0.04048491]
[1740232778896,5.32,2727.1,2726.6,3.70804491]
[1740232779667,5.32,2727.1,2726.8,3.66726]
[1740232779893,5.32,2727.1,2726.9,0.04041727]
[1740232780095,5.32,2727.1,2726.5,1.0535]
[1740232780297,5.32,2727.1,2726.6,0.72556293]
[1740232780808,5.32,2727.1,2726.7,0.04048186]
[1740232782205,10.157254,2727.1,2726.7,0.04048186]
[1740232782610,6.490254,2727.1,2726.7,0.04048186]
[1740232783350,10.157154,2727.1,2726.7,0.04048186]
[1740232783788,10.157154,2727.1,2726.5,1.0535]
[1740232783989,10.157154,2727.1,2726.8,0.04045931]
[1740232784213,10.157154,2727.1,2726.5,1.0535]
[1740232784420,10.157154,2727.1,2726.9,0.04041727]
[1740232784617,10.157154,2727.1,2726.5,1.0535]
[1740232784777,10.157154,2727.1,2727.0,0.04038498]
[1740232784982,13.824154,2727.1,2726.5,1.0535]
[1740232785182,3.66717,2726.9,2726.5,1.0535]
[1740232785398,3.66717,2726.9,2726.6,0.04051416]
[1740232786311,10.157154,2727.1,2726.6,0.04051416]
[1740232786610,4.9543454,2727.0,2726.6,0.04051416]
[1740232786818,3.66706,2727.0,2726.6,0.04051416]
[1740232788421,8.9869,2727.1,2726.6,0.04051416]
[1740232788726,3.66717,2726.9,2726.6,0.04051416]
[1740232790521,12.65399,2727.1,2726.7,0.11638851]
[1740232790721,8.98697,2727.1,2726.7,0.15688012]
[1740232790924,3.66718,2726.9,2726.7,0.15688012]
[1740232791922,3.6673,2726.8,2726.7,0.15688012]
[1740232792090,3.6673,2726.8,2726.7,0.04049161]
[1740232792291,3.6673,2726.8,2726.5,0.7885]
[1740232792490,3.6673,2726.8,2726.7,0.04049161]
[1740232792686,3.6673,2726.8,2726.5,0.7885]
[1740232792911,3.66718,2726.9,2726.7,0.04049161]
[1740232793113,3.6673,2726.8,2726.5,0.7885]
[1740232793501,3.6673,2726.8,2726.6,0.11644012]
[1740232793896,3.66718,2726.9,2726.6,0.11644012]
[1740232794626,5.32,2726.8,2726.6,0.11644012]
[1740232795044,5.32,2726.8,2726.7,0.11644012]
[1740232795250,5.32,2726.8,2726.7,0.39162639]
[1740232799140,5.32,2726.8,2726.7,4.81755639]
[1740232799319,5.32,2726.8,2726.7,5.08255639]
[1740232800339,5.32,2726.8,2726.7,6.12569919]
[1740232800843,5.32,2726.8,2726.7,7.69057072]
[1740232801135,5.32,2726.8,2726.7,7.80700882]
[1740232802752,0.7599,2727.8,2727.2,3.66668]
[1740232802753,5.32,2727.5,2727.2,3.66668]
[1740232802910,5.32,2727.5,2727.3,0.7778]
[1740232803939,5.32,2727.7,2727.6,4.44402]
[1740232804327,5.32,2727.7,2727.6,0.7778]
[1740232805127,5.32,2727.7,2727.6,4.44402]
[1740232805330,5.32,2727.7,2727.6,5.32071144]
[1740232805541,5.32,2727.7,2727.6,1.77092954]
[1740232805720,5.32,2727.7,2727.6,1.16942437]
[1740232806118,5.32,2727.7,2727.6,4.83564437]
[1740232806425,5.32,2727.8,2727.6,1.16942437]
[1740232807047,5.32,2728.0,2727.6,1.16942437]
[1740232807247,5.32,2728.2,2728.0,3.66564]
[1740232807447,4.49087,2728.6,2728.0,3.66564]
[1740232807829,3.66503,2728.5,2728.0,3.66564]
[1740232808026,3.66503,2728.5,2727.8,4.44365]
[1740232808227,3.66503,2728.5,2727.9,3.66574]
[1740232808620,10.49013,2728.5,2728.0,3.66566]
[1740232809750,6.8251,2728.5,2728.0,4.476521]
[1740232809955,6.8251,2728.5,2728.1,0.7748]
[1740232810360,6.8251,2728.5,2728.1,4.44033]
[1740232811044,6.8251,2728.5,2728.1,0.7748]
[1740232812424,12.1451,2728.5,2728.1,4.44032]
[1740232814156,12.1451,2728.5,2728.1,4.44027]
[1740232814361,12.1451,2728.5,2728.4,3.66515]
[1740232814653,6.8251,2728.5,2728.4,3.66515]
[1740232814962,6.8251,2728.5,2728.4,4.43995]
[1740232815962,3.66522,2728.4,2727.9,0.7748]
[1740232816131,3.66555,2728.1,2728.0,0.265]
[1740232816329,3.66573,2728.0,2727.7,0.7748]
[1740232816660,8.98573,2728.0,2727.5,0.71784887]
[1740232816825,3.66609,2727.7,2727.6,0.265]
[1740232817027,4.44002,2727.6,2727.5,0.71784887]
[1740232817235,3.66663,2727.3,2727.2,0.265]
[1740232818963,3.66648,2727.5,2727.2,0.30186498]
[1740232819161,3.66651,2727.4,2727.2,0.30186498]
[1740232819338,6.0938,2727.6,2727.2,0.265]
[1740232819545,6.0938,2727.6,2727.3,0.03683269]
[1740232819944,6.0938,2727.6,2727.2,0.265]
[1740232820368,6.0938,2727.6,2727.3,0.03784614]
[1740232820667,6.0938,2727.6,2727.2,0.265]
[1740232820827,6.0938,2727.6,2727.3,0.03784614]
[1740232821170,5.32,2727.6,2727.3,3.66662]
[1740232821464,5.32,2727.8,2727.5,3.66624]
[1740232821626,5.32,2728.1,2727.6,4.47875929]
[1740232821833,3.66578,2728.0,2727.6,0.03774929]
[1740232822052,5.32,2728.1,2727.4,0.7748]
[1740232822053,3.66608,2727.8,2727.4,0.7748]
[1740232822263,3.66608,2727.8,2727.5,0.03778157]
[1740232822443,3.66608,2727.8,2727.3,0.265]
[1740232822645,3.66606,2727.8,2727.4,0.03765789]
[1740232823271,3.66631,2727.6,2727.4,0.03765789]
[1740232823438,6.295922,2728.1,2727.4,0.03765789]
[1740232823439,5.32,2728.1,2727.4,0.03765789]
[1740232823766,5.32,2728.1,2727.5,3.66632]
[1740232823932,5.32,2728.1,2727.6,3.66618]
[1740232824136,5.32,2728.1,2727.6,3.70364662]
[1740232825876,5.32,2728.1,2727.6,4.50284662]
[1740232826240,8.98556,2728.1,2727.6,4.50284662]
[1740232826566,8.98555,2728.1,2727.6,0.83666662]
[1740232826738,8.98555,2728.1,2727.6,0.03746662]
[1740232827073,8.98555,2728.1,2727.5,3.66635]
[1740232827272,8.98555,2728.1,2727.6,0.03727171]
[1740232827567,5.32,2728.1,2727.6,0.03727171]
[1740232827774,8.98556,2728.1,2727.6,0.03727171]
[1740232827971,5.32,2728.1,2727.6,0.03727171]
[1740232828152,5.32,2728.1,2727.7,0.265]
[1740232828471,8.98559,2728.1,2727.8,0.03720716]
[1740232828675,8.98559,2728.1,2727.7,0.265]
[1740232828974,5.32,2728.1,2727.8,0.03720716]
[1740232829374,8.98563,2728.1,2727.7,0.265]
[1740232829579,8.98563,2728.1,2727.9,0.03717489]
[1740232829775,5.32,2728.1,2727.8,0.03720716]
[1740232829973,5.32,2728.1,2728.0,0.03714262]
[1740232830178,5.32,2728.1,2727.9,4.48227489]
[1740232830377,5.32,2728.1,2727.9,4.4451]
[1740232830543,5.32,2728.1,2728.0,3.70289084]
[1740232831174,8.7851,2728.5,2728.0,3.70289084]
[1740232831175,5.32,2728.3,2728.2,3.66542]
[1740232831354,6.8251,2728.5,2728.0,0.03721084]
[1740232831355,6.8251,2728.5,2728.4,4.44455]
[1740232831877,6.8251,2728.5,2728.4,0.81639409]
[1740232832899,6.8251,2728.5,2728.4,0.03699409]
[1740232833068,6.8251,2728.5,2728.3,0.265]
[1740232833397,6.8251,2728.5,2728.4,0.03699409]
[1740232834398,6.8251,2728.5,2728.4,3.70214409]
[1740232834573,6.8251,2728.5,2728.4,4.4653895]
[1740232837698,6.8251,2728.5,2728.4,4.58125067]
[1740232838990,6.8251,2728.5,2728.4,5.36065067]
[1740232840268,6.8251,2728.5,2728.4,5.63448007]
[1740232841672,6.8251,2728.5,2728.4,5.36065067]
[1740232843103,6.8251,2728.5,2728.4,5.2447895]
[1740232844099,6.8251,2728.5,2728.4,1.5796395]
[1740232844482,6.8251,2728.5,2728.4,5.2447895]
[1740232845583,6.8251,2728.5,2728.4,0.03699409]
[1740232845896,6.8251,2728.5,2728.4,3.70214409]
[1740232846200,6.8251,2728.5,2728.4,0.03699409]
[1740232846372,6.8251,2728.5,2728.4,3.70214409]
[1740232847007,6.8251,2728.5,2728.4,4.48304409]
[1740232847172,6.8251,2728.5,2728.4,5.3243675]
[1740232849210,6.8251,2728.5,2728.4,5.44010808]
[1740232849870,6.8251,2728.5,2728.4,5.71380848]
[1740232852618,6.8251,2728.5,2728.4,4.87248507]
[1740232860382,6.8251,2728.5,2728.4,4.09158507]
[1740232867123,6.8251,2728.5,2728.4,3.59158507]
[1740232867615,6.8251,2728.5,2728.4,4.37968507]
[1740232868387,6.8251,2728.5,2728.4,4.92968507]
[1740232868595,6.8251,2728.5,2728.4,6.16221367]
[1740232868789,3.66341,2729.7,2728.4,6.16221367]
[1740232868790,0.8166,2729.5,2729.2,3.66407]
[1740232869109,0.8166,2729.5,2729.4,3.6638]
[1740232869512,0.8166,2729.5,2729.2,7.59303]
[1740232869709,0.8166,2729.5,2729.2,3.92896]
[1740232870112,0.8166,2729.5,2729.2,0.265]
[1740232870332,0.8166,2729.5,2729.3,0.2737004]
[1740232870907,0.8166,2729.5,2729.3,0.38944098]
[1740232871628,0.8166,2729.5,2729.4,0.2737004]
[1740232872599,4.48027,2729.5,2729.4,0.2737004]
[1740232872818,5.826632,2729.5,2729.4,0.2737004]
[1740232873128,5.826632,2729.5,2729.4,0.38944098]
[1740232874428,5.826632,2729.5,2729.4,0.11574058]
[1740232874945,16.106632,2729.5,2729.4,0.11574058]
[1740232875093,3.66459,2728.9,2728.6,0.265]
[1740232875298,0.8166,2728.8,2728.6,0.265]
[1740232876635,4.48121,2728.8,2728.7,0.3431817]
[1740232878309,4.48121,2728.8,2728.6,0.265]
[1740232878514,3.66474,2728.7,2728.6,0.265]
[1740232880402,3.66474,2728.7,2728.6,0.34499482]
[1740232880806,8.98474,2728.7,2728.6,0.07999482]
[1740232881417,3.66488,2728.6,2728.5,0.34314342]
[1740232881744,3.66488,2728.6,2728.5,0.4232135]
[1740232882537,8.98475,2728.7,2728.5,0.4232135]
[1740232882710,8.98475,2728.7,2728.5,0.08007008]
[1740232882909,8.98475,2728.7,2728.3,0.27454281]
[1740232882910,5.32,2728.7,2728.3,0.27454281]
[1740232883106,5.32,2728.7,2728.4,0.50063163]
[1740232883538,5.32,2728.7,2728.5,0.11595942]
[1740232883837,5.32,2728.7,2728.6,0.07999482]
[1740232884843,5.32,2728.7,2728.6,0.19595424]
[1740232885742,5.32,2728.7,2728.6,0.46095424]
[1740232886146,5.32,2728.7,2728.6,0.68801156]
[1740232886715,3.66448,2728.9,2728.6,0.68801156]
[1740232886917,8.98445,2729.0,2728.6,0.68801156]
[1740232887255,5.32,2729.0,2728.6,4.93986962]
[1740232887468,5.32,2729.0,2728.7,0.8226]
[1740232887616,5.32,2729.0,2728.8,3.66452]
[1740232888428,5.32,2729.0,2728.8,3.93906281]
[1740232889121,5.32,2729.0,2728.9,0.34301674]
[1740232889321,5.32,2729.0,2728.9,0.98101566]
[1740232889553,5.32,2729.0,2728.9,1.25555847]
[1740232889721,5.32,2729.0,2728.9,4.92003847]
[1740232890730,6.0922,2729.7,2729.3,3.66393]
[1740232890930,6.0922,2729.7,2729.4,0.265]
[1740232891821,5.32,2729.7,2729.4,0.265]
[1740232892017,5.32,2729.7,2729.4,4.398563]
[1740232893053,5.32,2729.7,2729.5,3.66355]
[1740232894153,5.32,2729.7,2729.4,0.734853]
[1740232894354,5.32,2729.7,2729.4,4.398553]
[1740232894853,5.32,2729.7,2729.5,3.66365]
[1740232895152,5.32,2729.7,2729.4,0.734853]
[1740232895454,5.32,2729.7,2729.5,0.5168343]
[1740232895624,6.0922,2729.9,2729.5,0.5168343]
[1740232896219,6.0922,2729.9,2729.5,0.85928345]
[1740232896633,9.75534,2729.9,2729.5,0.85928345]
[1740232898035,9.75534,2729.9,2729.5,0.5168343]
[1740232898946,3.66341,2729.7,2729.4,0.60744915]
[1740232899152,9.75534,2729.9,2729.4,0.60744915]
[1740232899664,3.66328,2729.8,2729.4,0.265]
[1740232900159,3.66354,2729.6,2729.5,0.265]
[1740232900327,3.66343,2729.7,2729.5,0.265]
[1740232901273,3.66354,2729.6,2729.5,0.265]
[1740232901644,8.98354,2729.6,2729.5,0.265]
[1740232901842,0.7722,2729.5,2729.2,0.34244915]
[1740232902156,3.66394,2729.3,2729.2,0.34244915]
[1740232903031,3.66394,2729.3,2729.1,0.27387698]
[1740232904461,3.66394,2729.3,2729.0,0.265]
[1740232905583,3.66408,2729.2,2729.0,0.265]
[1740232906464,3.66394,2729.3,2729.0,0.265]
[1740232907603,8.98394,2729.3,2729.0,0.265]
[1740232908856,5.32,2729.3,2729.0,0.265]
[1740232910792,5.32,2729.3,2729.0,0.38074719]
[1740232912386,5.32,2729.3,2729.0,0.265]
[1740232913049,5.32,2729.3,2729.1,0.34277445]
[1740232914191,5.32,2729.3,2729.1,1.13247445]
[1740232914765,5.32,2729.3,2729.1,0.7897]
[1740232915690,5.32,2729.3,2729.1,0.90564899]
[1740232916890,5.32,2729.3,2729.2,0.34310238]
[1740232920080,5.32,2729.3,2729.2,0.45914985]
[1740232920659,5.27145159,2729.3,2729.2,0.45914985]
[1740232922979,5.27145159,2729.3,2729.2,4.95311985]
[1740232923192,5.27145159,2729.3,2729.2,6.18788293]
[1740232923374,5.27145159,2729.3,2729.2,6.73788293]
[1740232923920,0.8009,2730.3,2729.9,3.66307]
[1740232924095,6.07235159,2730.3,2729.9,3.66307]
[1740232924779,9.73497159,2730.3,2729.8,0.265]
[1740232924977,6.07235159,2730.3,2729.8,4.770347]
[1740232925367,6.07235159,2730.3,2730.0,0.34310238]
[1740232926095,9.73495159,2730.3,2730.0,0.34310238]
[1740232926298,0.8009,2730.2,2730.0,0.34310238]
[1740232926598,12.73521159,2730.1,2730.0,0.34310238]
[1740232926800,18.39759668,2730.1,2730.0,2.38e-06]
[1740232926979,4.4639,2730.0,2729.9,0.27448367]
[1740232927901,4.4639,2730.0,2729.5,0.265]
[1740232927902,4.42644,2729.6,2729.5,0.265]
[1740232928065,10.50687559,2729.6,2729.5,0.265]
[1740232928264,3.66381,2729.4,2729.2,0.27448367]
[1740232928597,3.66394,2729.3,2729.2,0.27448367]
[1740232928802,3.66381,2729.4,2729.2,0.27448367]
[1740232929002,3.66381,2729.4,2729.0,0.39034339]
[1740232929503,3.66381,2729.4,2729.1,0.11585972]
[1740232929863,3.66395,2729.3,2729.1,0.11585972]
[1740232930774,3.66381,2729.4,2729.1,0.11585972]
[1740232931175,12.59917159,2729.4,2729.0,0.27448367]
[1740232931371,3.66395,2729.3,2729.0,0.27448367]
[1740232931874,3.66408,2729.2,2729.0,0.27448367]
[1740232934511,3.66421,2729.1,2729.0,0.27448367]
[1740232934803,4.42711,2729.1,2729.0,0.27448367]
[1740232935875,3.66474,2728.7,2728.6,0.27448367]
[1740232936208,8.93619159,2728.7,2728.6,0.39034223]
[1740232937310,9.69909159,2728.7,2728.6,0.27448367]
[1740232937513,3.66536,2728.3,2728.1,0.265]
[1740232937690,4.42826,2728.3,2728.1,0.265]
[1740232937891,8.09365,2728.3,2728.1,0.265]
[1740232938112,3.66542,2728.2,2728.1,0.265]
[1740232938317,4.42826,2728.3,2728.1,0.265]
[1740232940004,3.66559,2728.1,2727.8,0.99798565]
[1740232940516,3.66559,2728.1,2727.8,0.72350198]
[1740232940981,3.66559,2728.1,2727.8,0.60774932]
[1740232941584,8.93687159,2728.2,2727.8,0.60774932]
[1740232942285,8.93687159,2728.2,2727.9,0.05384783]
[1740232942781,5.27145159,2728.2,2727.9,0.05384783]
[1740232944830,5.27145159,2728.2,2728.1,7.89088093]
[1740232945027,5.27145159,2729.2,2728.7,3.66464]
[1740232945202,5.27145159,2729.2,2728.8,4.47855679]
[1740232945525,5.27145159,2729.2,2728.9,3.66437]
[1740232945748,5.27145159,2729.2,2729.1,3.66421]
[1740232946052,5.27145159,2729.8,2729.3,3.66383]
[1740232946194,5.27145159,2729.8,2729.4,0.05998785]
[1740232946394,5.27145159,2729.8,2729.5,0.265]
[1740232946596,5.27145159,2729.8,2729.5,0.32493145]
[1740232947196,5.27145159,2729.8,2729.5,3.98847145]
[1740232947543,5.27145159,2729.8,2729.6,0.76]
[1740232948196,5.27145159,2729.8,2729.7,3.6634]
[1740232948707,5.27145159,2729.8,2729.6,0.76]
[1740232949291,5.27145159,2729.8,2729.7,0.265]
[1740232949292,8.93480159,2729.8,2729.7,0.265]
[1740232949541,5.27145159,2729.8,2729.7,0.265]
[1740232949745,8.93472159,2729.8,2729.6,0.75071413]
[1740232950344,5.27145159,2729.8,2729.6,0.75071413]
[1740232953241,5.27145159,2729.8,2729.6,1.21865254]
[1740232953748,5.27145159,2729.8,2729.7,3.6634]
[1740232954330,5.27145159,2730.2,2729.9,3.66301]
[1740232954505,5.27145159,2730.2,2729.8,4.46485]
[1740232955501,5.27145159,2730.2,2729.9,3.66313]
[1740232955723,5.27145159,2730.2,2729.9,4.47594]
[1740232955931,5.27145159,2730.2,2729.9,0.81281]
[1740232956299,5.27145159,2730.2,2729.6,0.75071413]
[1740232956652,8.93427159,2730.2,2729.6,4.41417413]
[1740232956955,8.93427159,2730.2,2729.7,3.6634]
[1740232957251,5.27145159,2730.2,2729.8,3.66324]
[1740232957936,8.93420159,2730.2,2729.6,0.75071413]
[1740232958118,3.66297,2730.1,2729.6,0.75071413]
[1740232958435,5.27145159,2730.2,2729.7,3.6634]
[1740232959439,5.27145159,2730.2,2730.1,4.44706]
[1740232962742,5.27145159,2730.2,2730.1,0.7842]
[1740232963841,5.27145159,2730.2,2730.1,4.44706]
[1740232964022,5.27145159,2730.5,2730.1,4.44706]
[1740232964538,5.27145159,2730.5,2730.1,0.7842]
[1740232964910,5.27145159,2730.5,2730.1,4.44704]
[1740232966414,8.93391159,2730.5,2730.1,0.7842]
[1740232966727,5.27145159,2730.5,2730.1,0.7842]
[1740232967107,3.66278,2730.2,2730.1,0.74308607]
[1740232968618,3.66321,2729.9,2729.7,0.265]
[1740232968825,3.66312,2730.0,2729.6,0.265]
[1740232969845,8.93457159,2730.0,2729.6,0.265]
[1740232971444,8.93448159,2730.0,2729.8,0.72606267]
[1740232974164,5.27145159,2730.0,2729.8,0.72606267]
[1740232975038,5.27145159,2730.0,2729.6,0.60738422]
[1740232975239,5.27145159,2730.0,2729.6,4.27088422]
[1740232975752,5.27145159,2730.0,2729.7,0.11594159]
[1740232976047,3.66313,2729.9,2729.7,0.45832581]
[1740232976350,5.27145159,2730.0,2729.7,0.45832581]
[1740232976551,5.27145159,2730.0,2729.7,4.12170581]
[1740232976711,5.27145159,2730.0,2729.7,0.45832581]
[1740232977449,5.27145159,2730.0,2729.8,0.11594159]
[1740232977845,5.27145159,2730.0,2729.8,0.45832581]
[1740232978673,5.27145159,2730.0,2729.8,0.34238422]
[1740232979656,5.27145159,2730.0,2729.7,3.66339]
[1740232980058,5.27145159,2730.0,2729.7,3.93799797]
[1740232980763,5.27145159,2730.0,2729.8,3.6632]
[1740232981471,5.27145159,2730.0,2729.9,4.42753]
[1740232981677,5.27145159,2730.3,2729.9,4.42753]
[1740232981881,5.27145159,2730.3,2730.0,3.66292]
[1740232982193,5.27145159,2730.3,2729.9,4.42753]
[1740232982366,5.27145159,2730.3,2729.9,5.35080048]
[1740232982582,5.27145159,2730.3,2730.0,0.3432575]
[1740232982783,5.27145159,2730.3,2730.0,0.45922026]
[1740232983316,5.27145159,2730.3,2730.0,0.73382823]
[1740232983514,5.27145159,2730.3,2730.0,4.39672823]
[1740232983816,5.27145159,2730.3,2730.1,0.97475287]
[1740232984019,5.27145159,2730.3,2730.0,4.39673823]
[1740232984399,5.27145159,2730.3,2730.1,0.45922026]
[1740232985300,5.27145159,2730.3,2730.1,4.12199026]
[1740232985887,5.27145159,2730.3,2730.2,0.11596276]
[1740232986387,5.27145159,2730.3,2730.2,0.45922026]
[1740232987795,5.27145159,2730.6,2730.2,0.45922026]
[1740232988212,8.93365159,2730.6,2730.2,0.45922026]
[1740232988583,12.59597159,2730.6,2730.2,0.45922026]
[1740232988797,12.59597159,2730.6,2730.3,0.11596276]
[1740232989011,8.93365159,2730.6,2730.3,0.11596276]
[1740232989211,5.27145159,2730.6,2730.3,0.91876276]
[1740232989418,5.27145159,2730.6,2730.3,1.26202026]
[1740232989918,8.93373159,2730.6,2730.3,0.45922026]
[1740232990122,3.66246,2730.4,2730.3,0.45922026]
[1740232990329,0.7989,2730.4,2730.3,0.45922026]
[1740232990621,0.7989,2730.4,2730.3,0.3432575]
[1740232991820,0.7989,2730.4,2730.1,0.39047458]
[1740232992020,6.07035159,2730.6,2730.1,4.05331458]
[1740232992521,9.73264159,2730.6,2730.2,0.11596276]
[1740232993492,9.73264159,2730.6,2730.1,3.66284]
[1740232993692,9.73264159,2730.6,2730.0,0.265]
[1740232993693,3.6626,2730.3,2730.0,0.265]
[1740232994722,3.6626,2730.3,2730.1,0.11593215]
[1740232995229,3.6626,2730.3,2730.1,0.45913916]
[1740232996304,3.66273,2730.2,2730.1,0.45913916]
[1740232996503,3.66273,2730.2,2730.1,0.34320701]
[1740232996813,9.73258159,2730.6,2730.0,0.11593215]
[1740232997015,3.6624,2730.5,2730.0,3.77890215]
[1740232997405,13.39485159,2730.6,2730.0,3.77890215]
[1740232997905,13.39485159,2730.6,2730.1,0.11593215]
[1740232999713,9.73258159,2730.6,2730.0,3.66297]
[1740233000038,3.66234,2730.5,2730.2,0.34325759]
[1740233000839,9.73258159,2730.6,2730.2,0.34325759]
[1740233001035,9.73258159,2730.6,2730.2,1.14605759]
[1740233001410,6.07035159,2730.6,2730.2,4.80878759]
[1740233001736,6.07035159,2730.6,2730.2,4.46553]
[1740233002937,6.07035159,2730.6,2730.1,0.27462776]
[1740233003240,4.48842,2730.3,2729.9,0.264]
[1740233003415,0.8258,2730.3,2729.9,0.264]
[1740233003617,0.8258,2730.3,2729.9,3.9271]
[1740233004322,4.48849,2730.3,2729.7,0.8044]
[1740233004527,4.48849,2730.3,2730.0,0.27469145]
[1740233004839,3.66276,2730.2,2730.0,0.61805443]
[1740233005627,8.93421159,2730.2,2730.0,0.34336298]
[1740233005834,5.27145159,2730.2,2730.0,0.34336298]
[1740233006540,5.27145159,2730.2,2729.9,0.27469145]
[1740233007429,5.27145159,2730.2,2730.0,0.27469145]
[1740233007829,5.27145159,2730.2,2730.0,3.93765145]
[1740233008137,5.27145159,2730.2,2730.1,0.27469145]
[1740233009538,5.27145159,2730.2,2730.1,0.61821006]
[1740233009915,5.27145159,2730.2,2730.1,5.08547006]
[1740233010126,5.27145159,2730.2,2730.1,5.96031707]
[1740233011546,5.27145159,2730.6,2730.2,3.66269]
[1740233011748,5.27145159,2730.6,2730.3,3.66251]
[1740233011930,5.27145159,2730.6,2730.2,3.66269]
[1740233012243,6.05535159,2731.0,2730.6,4.42667]
[1740233012442,6.05535159,2731.0,2730.7,0.264]
[1740233012443,5.27145159,2731.0,2730.7,0.264]
[1740233012876,5.27145159,2731.0,2730.8,3.66191]
[1740233013028,5.27145159,2731.0,2730.8,4.497168]
[1740233013930,5.27145159,2731.0,2730.8,0.835258]
[1740233014130,9.71703159,2731.0,2730.6,0.7645]
[1740233014379,6.05535159,2731.0,2730.7,0.264]
[1740233014680,6.05535159,2731.0,2730.9,0.34351861]
[1740233015059,5.27145159,2731.0,2730.9,0.34351861]
[1740233015642,8.93311159,2731.0,2730.9,0.34351861]
[1740233016647,10.27097675,2731.0,2730.9,0.34351861]
[1740233017739,8.93311159,2731.0,2730.9,0.34351861]
[1740233017979,8.93311159,2731.0,2730.6,0.264]
[1740233018283,3.66196,2730.8,2730.6,0.264]
[1740233018798,3.66206,2730.7,2730.6,0.264]
[1740233019891,3.66219,2730.6,2730.5,0.34286371]
[1740233020966,3.66219,2730.6,2730.4,0.60686371]
[1740233021262,8.10793,2730.8,2730.4,0.60686371]
[1740233021449,3.66216,2730.7,2730.4,0.60686371]
[1740233021767,3.66221,2730.6,2730.4,0.60686371]
[1740233022368,3.66221,2730.6,2730.4,0.88114891]
[1740233022568,3.66221,2730.6,2730.5,0.34286371]
[1740233023770,8.10791,2730.8,2730.5,0.34286371]
[1740233023990,8.10795,2730.8,2730.5,0.34286371]
[1740233024194,3.662,2730.8,2730.5,0.34286371]
[1740233024891,7.32401,2730.8,2730.5,0.34286371]
[1740233025090,3.662,2730.8,2730.5,0.34286371]
[1740233025390,7.32403,2730.8,2730.5,0.34286371]
[1740233025593,7.32403,2730.8,2730.4,0.5382852]
[1740233025891,3.662,2730.8,2730.4,1.03483172]
[1740233026889,3.66208,2730.7,2730.4,0.76054652]
[1740233027391,3.66227,2730.6,2730.4,0.264]
[1740233027608,3.66233,2730.5,2730.4,0.264]
[1740233027762,3.66246,2730.4,2730.3,0.2742852]
[1740233028162,3.66214,2730.7,2730.3,0.2742852]
[1740233028672,3.66214,2730.7,2730.2,1.0285]
[1740233028673,3.66227,2730.6,2730.2,1.0285]
[1740233028881,5.27145159,2730.8,2730.3,4.00545687]
[1740233029088,5.27145159,2730.8,2730.4,3.66243]
[1740233029460,5.27145159,2730.8,2730.3,4.00544687]
[1740233029663,8.93342159,2730.8,2730.4,0.2742852]
[1740233030388,3.66216,2730.7,2730.4,0.2742852]
[1740233030888,3.66216,2730.7,2730.5,0.34286687]
[1740233031199,8.93342159,2730.8,2730.5,0.34286687]
[1740233031406,3.66207,2730.7,2730.5,0.34286687]
[1740233031992,8.93342159,2730.8,2730.5,0.34286687]
[1740233032193,3.66219,2730.6,2730.5,0.34286687]
[1740233033301,5.27145159,2730.8,2730.3,0.88119624]
[1740233033909,5.27145159,2730.8,2730.3,4.54369624]
[1740233035210,5.27145159,2730.8,2730.4,0.34286687]
[1740233035714,5.27145159,2730.8,2730.4,0.61719624]
[1740233036012,8.93340159,2730.8,2730.4,0.61719624]
[1740233036314,5.27145159,2730.8,2730.4,0.61719624]
[1740233036514,5.27145159,2730.8,2730.4,1.51426986]
[1740233036714,5.27145159,2730.8,2730.4,1.23994049]
[1740233037416,5.27145159,2730.8,2730.5,0.34286687]